Cogmind - Beta 15 @@@ ROGUE MODE // 2025.05.24 @ 18:09:18 Player: KaiserChief Result: Destroyed by L-41 Fighter with Axe Performance ------------- Evolutions (1) 500 Regions Visited (5) 1000 Robots Destroyed (14) 70 Value Destroyed (387) 387 Prototype IDs (1) 20 Alien Tech Used (0) 0 Bonus (200) 200 TOTAL SCORE: 2177 Bonus ------- Pacifist 200 Cogmind --------- Core Integrity 0/400 Matter 273/300 Energy 93/100 System Corruption 5% Temperature Warm (101) Movement Core (100) Ox1 Location -6/Proximity Caves Parts ------- > --- POWER (1) -------- (None) > --- PROPULSION (4) --- (None) > --- UTILITY (2) ------ Small Storage Unit > --- WEAPON (2) ------- (None) > --- INVENTORY (8) ---- Light Ion Engine Advanced Visual Processing Unit Advanced Visual Processing Unit Hardened Light Armor Plating CR-A16's Pointy Stick Peak State ------------ > --- POWER ------------ Nuclear Core > --- PROPULSION ------- Aluminum Leg Aluminum Leg Improved Aluminum Leg > --- UTILITY ---------- Small Storage Unit 0b10 Decoder Chip [Scout] > --- WEAPON ----------- Medium Laser CR-A16's Pointy Stick > --- INVENTORY -------- Light Ion Engine Nuclear Core Advanced Visual Processing Unit Advanced Visual Processing Unit Hardened Light Armor Plating EM Shotgun Beam Cannon Rocket Launcher [Rating: 19] Favorites ----------- Power Nuclear Core Engine Ion Engine Power Core Nuclear Core Propulsion Aluminum Leg Leg Aluminum Leg Wheel Wheel Utility Small Storage Unit Device ECM Suite Storage Small Storage Unit Processor 0b10 Decoder Chip [Scout] Weapon Medium Laser Energy Gun Medium Laser Energy Cannon Beam Cannon Launcher Rocket Launcher Piercing Weapon CR-A16's Pointy Stick Build | -11 -10 -9 -9 -7 -6 ------- Run | Yrd Mat Mat Min Zio Pro Slots Evolved 2 | . . 2 . . . Power . | . . . . . . Propulsion 2 | . . 2 . . . Utility . | . . . . . . Weapon . | . . . . . . Parts Attached 20 | 6 1 9 . 1 3 Power 5 | 1 . 3 . . 1 Engine 2 | 1 . 1 . . . Core 3 | . . 2 . . 1 Reactor . | . . . . . . Propulsion 5 | 2 . 3 . . . Treads . | . . . . . . Leg 3 | . . 3 . . . Wheel 2 | 2 . . . . . Hover . | . . . . . . Flight . | . . . . . . Utility 3 | 1 1 . . 1 . Device 1 | . 1 . . . . Storage 1 | 1 . . . . . Processor 1 | . . . . 1 . Hackware . | . . . . . . Protection . | . . . . . . Artifact . | . . . . . . Weapon 7 | 2 . 3 . . 2 Energy Gun 4 | 2 . 1 . . 1 Energy Cannon 1 | . . 1 . . . Ballistic Gun . | . . . . . . Ballistic Cannon . | . . . . . . Launcher 1 | . . 1 . . . Special Weapon . | . . . . . . Impact Weapon . | . . . . . . Slashing Weapon . | . . . . . . Piercing Weapon 1 | . . . . . 1 Special Melee Weapon . | . . . . . . Unidentified Prototypes 1 | . . 1 . . . Corrupted Parts 1 | . . 1 . . . System Corruption 1 | . . 1 . . . Parts Lost 12 | . . 3 . . 9 Power 2 | . . . . . 2 Propulsion 5 | . . 2 . . 3 Utility 1 | . . . . . 1 Weapon 4 | . . 1 . . 3 Highest Loss Streak 9 | . . 2 . . 9 To Critical Strikes 1 | . . . . . 1 Average Backups 7 | 2 2 6 8 8 7 Power 1 | . 1 1 2 2 1 Propulsion . | . . . . . . Utility 2 | . . 2 3 3 3 Weapon 2 | 1 1 2 3 2 2 Tool/Special . | . . . . . . Unused Backups 8 | . . 2 . 2 4 Power 1 | . . . . . 1 Propulsion . | . . . . . . Utility 5 | . . 1 . 1 3 Weapon 2 | . . 1 . 1 . Tool/Special . | . . . . . . Average Slot Usage (%) 85 | . 95 80 88 88 85 Engine 1 | . 14 1 . . . Core 9 | . . 9 11 11 11 Leg 27 | . . 21 33 33 31 Wheel 2 | . 28 3 . . . Device 5 | . 9 11 11 3 . Storage 11 | . 14 11 11 11 11 Processor 5 | . . . . 7 10 Energy Gun 12 | . 28 11 11 11 11 Energy Cannon 9 | . . 10 11 11 10 Peak Build Rating 19 | 6 7 14 12 17 19 Average Rating 13 | 3 6 10 12 14 16 On Entrance 9 | . 6 7 12 12 17 Naked Turns . | . . . . . . Heaviest Build 19 | 14 16 19 19 19 18 Greatest Support 33 | 26 26 33 33 33 33 Greatest Overweight (x) 2 | . . 1 . . 2 Average Overweight (x) . | . . . . . . Largest Inventory Capacity 8 | 8 8 8 8 8 8 Average Capacity 7 | 6 8 8 8 8 8 Most Carried 8 | 5 4 8 8 8 8 Average Carried 7 | 2 2 6 8 7 7 Final Capacity 8 | 8 8 8 8 8 8 Final Carried 8 | 2 3 8 8 8 5 Class Distribution -------------------- 100% | Mutant Dominant Class ---------------- Mutant | -10/Materials Mutant | -9/Materials Mutant | -9/Mines Mutant | -7/Zion Mutant | -6/Proximity Caves Resources | -11 -10 -9 -9 -7 -6 ----------- Run | Yrd Mat Mat Min Zio Pro Matter Collected 427 | 174 . 180 . 73 . Remotely . | . . . . . . Salvage Created 478 | . . 466 . . 12 Parts 27 | . . 25 . . 2 Haulers Intercepted 1 | . . 1 . . . Recyclers Shooed 1 | . . 1 . . . Parts Field Recycled . | . . . . . . Retrieved Matter . | . . . . . . Parts Self-Destructed 2 | . . . . . 2 Prevented . | . . . . . . Kills | -11 -10 -9 -9 -7 -6 ------- Run | Yrd Mat Mat Min Zio Pro Combat Hostiles Destroyed 12 | . . 11 . . 1 Guns 7 | . . 7 . . . Cannons 3 | . . 3 . . . AOE 2 | . . 1 . . 1 Classes Destroyed 6 | . . 6 . . . Worker 1 | . . 1 . . . Hauler 1 | . . 1 . . . Swarmer 4 | . . 3 . . 1 Grunt 5 | . . 5 . . . Duelist 1 | . . 1 . . . Sentry 2 | . . 2 . . . Best Kill Streak 3 | . . 3 . . 1 Combat Bots Only 3 | . . 3 . . 1 Max Kills in Single Turn 1 | . . 1 . . 1 Gunslinging . | . . . . . . Exploded 1 | . . 1 . . 1 Melee . | . . . . . . Uniques/NPCs Destroyed . | . . . . . . Combat | -11 -10 -9 -9 -7 -6 -------- Run | Yrd Mat Mat Min Zio Pro Hostile Shots Fired 96 | . . 48 2 . 46 Missed 25 | . . 15 . . 10 Hits 71 | . . 33 2 . 36 Melee 17 | . . 4 . . 13 Projectile 54 | . . 29 2 . 23 Critical Strikes 5 | . . 2 . . 3 Damage Taken 1399 | . . 450 30 . 919 Core 417 | . . 82 18 . 317 Absorbed by Shields . | . . . . . . Regen/Repaired (Parts) 92 | . . 84 . 8 . Core Remaining (%) 100 | 100 100 . . . . Volleys Fired 42 | . . 33 . . 9 Largest 2 | . . 2 . . 2 Hottest 110 | . . 110 . . 110 Shots Fired 79 | . . 66 . . 13 Gun 42 | . . 37 . . 5 Cannon 32 | . . 26 . . 6 Launcher 5 | . . 3 . . 2 Special . | . . . . . . Kinetic . | . . . . . . Thermal 69 | . . 59 . . 10 Explosive 5 | . . 3 . . 2 Electromagnetic 5 | . . 4 . . 1 Robot Hit Streak 11 | . . 11 . . 5 Robot Miss Streak 4 | . . 4 . . 2 Penetration Max . | . . . . . . Secondary Targets . | . . . . . . Shots Hit Robots 53 | . . 44 . . 9 Core Hits 31 | . . 22 . . 9 Critical Kills . | . . . . . . Critical Parts Destroyed . | . . . . . . Critical Strikes 2 | . . 2 . . . Burn 2 | . . 2 . . . Melee Attacks 2 | . . . . . 2 Impact . | . . . . . . Slashing . | . . . . . . Piercing 2 | . . . . . 2 Sneak Attacks . | . . . . . . Combat Hostiles . | . . . . . . Follow-up Attacks . | . . . . . . Damage Inflicted 1233 | . . 913 . . 320 Guns 351 | . . 308 . . 43 Cannons 385 | . . 297 . . 88 Explosions 472 | . . 305 . . 167 Melee 22 | . . . . . 22 Ramming 3 | . . 3 . . . Kinetic . | . . . . . . Thermal 696 | . . 583 . . 113 Explosive 472 | . . 305 . . 167 Electromagnetic 40 | . . 22 . . 18 Impact . | . . . . . . Slashing . | . . . . . . Piercing 22 | . . . . . 22 Highest Corruption 5 | . . 3 3 3 5 Average Corruption 2 | . . 2 3 3 1 Corruption Purged . | . . . . . . Corruption Blocked . | . . . . . . Effects 10 | . . 9 . 1 . Message Errors 3 | . . 2 . 1 . Matter Fused 2 | . . 2 . . . Heat Flow Errors 5 | . . 5 . . . Overload Shots . | . . . . . . Overflow Damage 16 | . . 16 . . . Projectiles . | . . . . . . Explosions 16 | . . 16 . . . Melee . | . . . . . . Knockbacks . | . . . . . . Impact . | . . . . . . Kinetic . | . . . . . . Secondary . | . . . . . . Self-Inflicted Damage 54 | . . 7 . . 47 Shots 2 | . . 1 . . 1 Rammed 1 | . . 1 . . . Targets Rammed 3 | . . 3 . . . Kicked 2 | . . 2 . . . Crushed . | . . . . . . Highest Temperature 477 | . . 477 . . 92 Average Temperature 126 | . . 137 . . 38 Received Heat Transfer 228 | . . 132 15 . 81 Effects 2 | . . 2 . . . Shutdowns 1 | . . 1 . . . Energy Bleed 1 | . . 1 . . . Siege Activations . | . . . . . . Martial Activations . | . . . . . . Shielding Activations . | . . . . . . Robots Disrupted . | . . . . . . Combat Hostiles . | . . . . . . Robots Corrupted . | . . . . . . Combat Hostiles . | . . . . . . Parts Fried . | . . . . . . Impact Corruptions . | . . . . . . Robots Melted . | . . . . . . Combat Hostiles . | . . . . . . Parts Melted . | . . . . . . Heat Transferred 1887 | . . 1628 . . 259 Parts Sabotaged . | . . . . . . Parts Stolen . | . . . . . . Parts Stripped . | . . . . . . Power Chain Reactions . | . . . . . . Alert | -11 -10 -9 -9 -7 -6 ------- Run | Yrd Mat Mat Min Zio Pro Maximum Alert Level . | . . . . . . Low Security (%) 100 | 100 100 100 100 . . Level 1 . | . . . . . . Level 2 . | . . . . . . Level 3 . | . . . . . . Level 4 . | . . . . . . Level 5 . | . . . . . . High Security . | . . . . . . Max Security . | . . . . . . Peak Influence 111 | . . 111 37 . . Initial 37 | . . . 37 . . Average 29 | . . 38 37 . . Influence Increases 353 | . . 333 . . 20 Destroy 0b10 Robot/C 240 | . . 220 . . 20 Destroy 0b10 Robot/NC 10 | . . 10 . . . Destroy Leader 42 | . . 42 . . . Successful Hack 3 | . . 3 . . . Disable Machine 30 | . . 30 . . . Destroy Structure 28 | . . 28 . . . Influence Decreases 353 | . . 235 61 37 20 Entered New Map 98 | . . . 61 37 . Time Decay 225 | . . 225 . . . Lost Part 30 | . . 10 . . 20 Squads Dispatched 1 | . . . . . 1 Investigation . | . . . . . . Extermination . | . . . . . . Reinforcement . | . . . . . . Assault 1 | . . . . . 1 Garrison . | . . . . . . Intercept . | . . . . . . Searches Triggered . | . . . . . . Construction Impeded . | . . . . . . Haulers Reinforced . | . . . . . . Active Scanning Responses . | . . . . . . Cargo Convoy Interrupts . | . . . . . . Stealth | -11 -10 -9 -9 -7 -6 --------- Run | Yrd Mat Mat Min Zio Pro Distress Signals 2 | . . 2 . . . Communications Jammed . | . . . . . . Distress Signals . | . . . . . . Times Spotted 34 | . 1 22 2 . 9 Peak Tracking Total 7 | . 1 4 2 . 7 Tactical Retreats 2 | . . 2 . . . Traps | -11 -10 -9 -9 -7 -6 ------- Run | Yrd Mat Mat Min Zio Pro Traps Triggered . | . . . . . . Indirectly . | . . . . . . Trap Hack Attempts . | . . . . . . Triggered . | . . . . . . Disarmed . | . . . . . . Reprogrammed . | . . . . . . Reused . | . . . . . . Traps Extracted . | . . . . . . Installed . | . . . . . . Triggered . | . . . . . . Machines | -11 -10 -9 -9 -7 -6 ---------- Run | Yrd Mat Mat Min Zio Pro Machines Disabled 2 | . . 2 . . . Max in Single Turn 1 | . . 1 . . . Machines Repaired . | . . . . . . Machines Dismantled . | . . . . . . Machines Sabotaged . | . . . . . . Overloaded Fab Kills . | . . . . . . Hacking | -11 -10 -9 -9 -7 -6 --------- Run | Yrd Mat Mat Min Zio Pro Machines Accessed 2 | . . 2 . . . Terminals 1 | . . 1 . . . Fabricators . | . . . . . . Repair Stations 1 | . . 1 . . . Recycling Units . | . . . . . . Scanalyzers . | . . . . . . Garrison Access . | . . . . . . Total Hacks 5 | . . 5 . . . Successful 3 | . . 3 . . . Failed 2 | . . 2 . . . Catastrophic . | . . . . . . Database Lockouts . | . . . . . . Manual 2 | . . . . 2 . Terminals 1 | . . 1 . . . Fabricators . | . . . . . . Repair Stations 4 | . . 4 . . . Recycling Units . | . . . . . . Scanalyzers . | . . . . . . Garrison Access . | . . . . . . Terminal Hacks 1 | . . 1 . . . Maintenance Status 1 | . . 1 . . . Fabricator Hacks . | . . . . . . Repair Station Hacks 2 | . . 2 . . . Scan Component 1 | . . 1 . . . Repair 1 | . . 1 . . . Recycling Unit Hacks . | . . . . . . Scanalyzer . | . . . . . . Garrison Access Hacks . | . . . . . . Unauthorized Hacks . | . . . . . . Terminals . | . . . . . . Fabricators . | . . . . . . Repair Stations . | . . . . . . Recycling Units . | . . . . . . Scanalyzers . | . . . . . . Garrison Access . | . . . . . . Data Cores Recovered . | . . . . . . Used . | . . . . . . Hacking Detections 1 | . . 1 . . . Full Trace Events . | . . . . . . Feedback Events . | . . . . . . Feedback Blocked . | . . . . . . Robot Schematics Acquired 3 | . . . . 3 . Robots Built . | . . . . . . Authchips . | . . . . . . Time . | . . . . . . Total Robot Build Rating . | . . . . . . Part Schematics Acquired 14 | . . . . 14 . Parts Built . | . . . . . . Authchips . | . . . . . . Time . | . . . . . . Total Part Build Rating . | . . . . . . Parts Repaired 1 | . . 1 . . . Time 26 | . . 26 . . . Parts Recycled . | . . . . . . Recycled Matter . | . . . . . . Retrieved Matter . | . . . . . . Retrieved Components . | . . . . . . Parts Scanalyzed . | . . . . . . Part Schematics Acquired . | . . . . . . Parts Damaged . | . . . . . . Bothacking | -11 -10 -9 -9 -7 -6 ------------ Run | Yrd Mat Mat Min Zio Pro Used RIF Installer . | . . . . . . Robots Hacked . | . . . . . . Non-combat . | . . . . . . Combat . | . . . . . . Robot Hacks Applied . | . . . . . . Relay Couplers Released . | . . . . . . Fabnet Peak Effective % . | . . . . . . Robots Rewired . | . . . . . . Allies Hacked . | . . . . . . Hacks Repelled . | . . . . . . Allies | -11 -10 -9 -9 -7 -6 -------- Run | Yrd Mat Mat Min Zio Pro Total Allies . | . . . . . . Largest Group . | . . . . . . Highest-Rated Group . | . . . . . . Highest-Rated Ally . | . . . . . . Total Orders . | . . . . . . Ally Attacks . | . . . . . . Total Damage . | . . . . . . Kills . | . . . . . . Allies Corrupted . | . . . . . . Allies Melted . | . . . . . . Intel | -11 -10 -9 -9 -7 -6 ------- Run | Yrd Mat Mat Min Zio Pro Active Infowar (turns) 2382 | . 103 611 5 1121 542 Decoding 1305 | . . . . 763 542 ECM 1077 | . 103 611 5 358 . Robot Analysis Total . | . . . . . . Derelict Logs Recovered . | . . . . . . Drone Launches . | . . . . . . Drone Recoveries . | . . . . . . Exploration | -11 -10 -9 -9 -7 -6 ------------- Run | Yrd Mat Mat Min Zio Pro Turns Passed 2495 | 47 144 611 5 1121 567 Spaces Moved 1685 | 43 137 369 5 889 242 Core 15 | 13 . . . . 2 Treads . | . . . . . . Legs 1404 | . . 270 5 889 240 Wheels 266 | 30 137 99 . . . Hover . | . . . . . . Flight . | . . . . . . Fastest Speed 50 | 50 90 90 120 120 100 Average Speed 115 | 77 90 112 120 120 121 Slowest Speed 190 | 90 90 120 120 120 190 Overloaded Moves . | . . . . . . Propulsion Burnouts . | . . . . . . Robots Hopped 1 | . . . . 1 . Potential Cave-ins . | . . . . . . Cave-ins Triggered . | . . . . . . Exploration Rate (%) 27 | 3 26 30 4 74 25 Regions Visited 5 Branch Regions 3 Pre-discovered Areas 2 | . . . . 2 . Known Exits Taken . | . . . . . . Unknown Exits Taken 5 | 1 1 1 1 1 . Scrap Searched 2 | . . . . 2 . Spaces Dug . | . . . . . . Terrain Destroyed 41 | . . 23 . . 18 Melee . | . . . . . . Projectile . | . . . . . . AOE 41 | . . 23 . . 18 Terrain Rammed . | . . . . . . Walls Destroyed . | . . . . . . Machines Disabled . | . . . . . . Actions | -11 -10 -9 -9 -7 -6 --------- Run | Yrd Mat Mat Min Zio Pro Total 2154 | 56 157 497 4 943 497 Wait 363 | . 18 57 . 49 239 Move 1678 | 42 136 368 4 886 242 Hop 1 | . . . . 1 . Pick Up 30 | 8 2 17 . 3 . Fast Attach . | . . . . . . Attach 15 | 6 1 5 . . 3 Detach . | . . . . . . Swap 10 | . . 7 . 1 2 Drop 10 | . . 7 . 3 . Fire 42 | . . 33 . . 9 Melee 2 | . . . . . 2 Ram 1 | . . 1 . . . Kick 2 | . . 2 . . . Crush . | . . . . . . Escape Stasis . | . . . . . . Rewire . | . . . . . . Trap . | . . . . . . Miscellaneous . | . . . . . . Route ------- -11/Scrapyard -10/Materials -9/Materials -9/Mines (discovered 2 exits: [*Mat] / *Zio) -7/Zion -6/Proximity Caves History --------- Turn | Location | Event 8 | -11/Scrapyard | Discovered new exit (range 16) 48 | -11/Scrapyard | Entered Materials 119 | -10/Materials | Discovered new exit (range 13) 192 | -10/Materials | Entered another Materials area 192 | -9/Materials | Evolved 2 slots: Propulsion x2 316 | -9/Materials | Build established: Mutant 733 | -9/Materials | Repaired Aluminum Leg 783 | -9/Materials | Discovered new exit (range 9) 803 | -9/Materials | Entered Mines 804 | -9/Mines | A Derelict revealed a hidden shortcut to a safe place 805 | -9/Mines | Discovered new exit (range 15) 808 | -9/Mines | Entered Zion 857 | -7/Zion | System corruption cleaned by Quarantine Array 872 | -7/Zion | Learned location of Quarantine (-2) 1717 | -7/Zion | Learned location of Recycling (-7) 1881 | -7/Zion | Discovered new exit (range 12) 1909 | -7/Zion | Found CR-A16's Pointy Stick 1929 | -7/Zion | Entered Proximity Caves 1931 | -6/Proximity Caves | Spotter reported a threat 1932 | -6/Proximity Caves | Spotter reported a threat 2204 | -6/Proximity Caves | Received a Behemoth hack from an annoying Tinkerer 2452 | -6/Proximity Caves | Attracted the attention of an 0b10 outpost 2483 | -6/Proximity Caves | Core integrity fell below 50% 2495 | -6/Proximity Caves | Core integrity fell below 20% 2496 | -6/Proximity Caves | Destroyed by L-41 Fighter with Axe Last Messages --------------- Aluminum Leg destroyed. 0b10 Decoder Chip [Scout] destroyed. S-27 Virus destroyed. Rocket Launcher destroyed. Penetrated by Slug. The unstable cave ceiling collapses. Penetrated by Slug. Nuclear Core destroyed. Aluminum Leg destroyed. EM Shotgun destroyed. System corrupted by crushing effect (+1). Penetrated by Slug. Med. Laser severed. Lgt. Nuclear Core fries itself beyond repair. VTOL Module fries itself beyond repair. Slug penetrates G-50 Soldier. Critical hit (Smash). Nuclear Core destroyed. System corrupted by crushing effect (+4). Beam Cannon destroyed. Map ----- +----------------------------------------------------+ | ?????????????????????????????????????????????????? | | ?????????????????????????????????????????????????? | | ?????????????????????????????????????????????????? | | ???????????????????? #??????????????????????????? | | ???????????????????# ??????????????????????????? | | ??????????????????? ??????????????????????????? | | ??????????????????# ??????????????????????????? | | ??????????????????# #??????????????????????????? | | ??????????????????# ##?????????????????????????? | | ??????????????????# ##????????????????????????? | | ?????????????????? #????????????????????????? | | ?????????????????? ?????????????????????????? | | ?????????????????## ?????????????????????????? | | ?????????????????# ??????????????????????????? | | ???? ??????????## ##?????????????????????????? | | ???? #?????????# # ###??????????????????????? | | ???? #????????## ## ##?????????????????????? | | ???# #??# ## ##????????????????????? | | #??# #??# #????????????????????? | | ### #???# ####+# % #????????????????????? | | ## #???????????# "l #????????????????????? | | #???????????#l " #???????????????????? | | #????????????+ " ## #???????????????????? | | # ##???????????+ " ##?##???????????????????? | | # ###?????????# " lg##?????????????????????? | | # #????#????# "# b@ ##????????????????????? | | #?????# ####+### Y #????????????????????? | | #?????# ##???????????????????? | | #?????#### ##??????????????????? | | #???????## #???###????????????? | | ##????### ### #??## ##???????????? | | ## #???## ##?## ##??# ##??????????? | | #### ##?## #???## ##??# #??????????? | | #??## ### ##???# ##?# #??????????? | | ????# #??## #?# ##?????????? | | ????## #?# ### ##????????? | | ?????## #?# ##???????? | | ??????# ## #?# #####??## | | ??????## ### #### #?# ##### #### | | ???????###?#####??#####?## ##???## | | ?????????????????????????##??????# ## | | ?????????????????????????????????# ### | | ?????????????????????????????????# ##?### | | ?????????????????????????????????## ##????##### # | | ??????????????????????????????????###?????????#### | | ?????????????????????????????????????????????????? | | ?????????????????????????????????????????????????? | | ?????????????????????????????????????????????????? | | ?????????????????????????????????????????????????? | | ?????????????????????????????????????????????????? | +----------------------------------------------------+ Best States ------------- Heat Dissipation 28 Energy Generation 14 Energy Capacity 250 Matter Stores 300 Matter Capacity 300 Sight Range 16 Terrain Scan Density 10 ECM Strength 1 Evasion (%) 55 Item Schematics ----------------- Adv. Terrain Scanner | -7/Zion | Archive IFF Parser | -7/Zion | Archive Energy Filter | -7/Zion | Archive Gravmag System | -7/Zion | Archive Power Sword | -7/Zion | Archive Adv. System Restoration Module | -7/Zion | Archive Weapon Cycler | -7/Zion | Archive Hvy. Laser | -7/Zion | Archive Imp. Hacking Suite | -7/Zion | Archive Lrn. Missile Launcher | -7/Zion | Archive Gauss Rifle | -7/Zion | Archive Imp. Heavy Armor Plating | -7/Zion | Archive Adv. ECM Suite | -7/Zion | Archive Imp. Weapon Cycler | -7/Zion | Archive Robot Schematics ------------------ S-27 Virus | -7/Zion | Archive L-41 Fighter | -7/Zion | Archive K-01 Serf | -7/Zion | Archive Fabricated ------------ Nothing Repaired ---------- Aluminum Leg | 6% | -9/Materials Alien Tech Used ----------------- None Achievements -------------- None Challenges ------------ None Game ------ Seed AlloyTargetingScrap Manual? 0 Play Time 00:24:09 Cumulative 5.4 hours Start 2025.05.24 @ 17:46:00 End 2025.05.24 @ 18:09:18 Sessions 1 Manual Loads 0 Difficulty Rogue Special Mode None Game No. 12 Rogue 12 Adventurer 0 Explorer 0 Win Type - Total 0 Types 0/0/0/0/0/0/0/0/0/0 Lore% 10 Gallery% 9 Achievement% 10 Wizard Run 0 Options --------- Layout 2 ASCII 0 Keyboard 0 Movement Numpad Keybinds 0 Fullscreen 1 Font 24/Proggy Map View 50x44 Zoom Use 0% Tactical HUD 0 Map Filters NONE Filters NONE Steam 1 RUN: c82bf81e-8e8b-4ef4-8969-8f639c2e17ef